[Event "USA-ch Women 2024"]
[Site "Saint Louis"]
[Date "2024.10.17"]
[Round "6.6"]
[White "Tokhirjonova, Gulrukhbegim"]
[Black "Cervantes Landeiro, Thalia"]
[Result "1-0"]
[ECO "D00"]
[WhiteElo "2374"]
[BlackElo "2302"]
[Annotator "TA"]
[PlyCount "89"]
[EventDate "2024.10.09"]
[EventType "tourn"]
[EventCountry "USA"]
[SourceTitle "playchess.com"]
[Source "ChessBase"]
[SourceQuality "1"]
[TimeControl "40/5400+30:1800+30"]

{[%evp 9,89,12,25,25,15,15,34,24,36,35,27,32,38,-1,-3,0,0,0,-1,1,-8,-16,30,12,18,20,29,17,14,11,23,24,40,26,29,40,34,0,58,57,0,23,118,125,152,-77,-59,-79,-77,-72,-60,-72,-79,-74,0,0,0,0,0,0,102,106,493,499,513,519,481,489,29980,29981,29981,29982,29982,29983,29993,29979,29994,29995,29995,29984,29996,29997]} 1. d4 {[%emt 0:00:04]} d5 {[%emt 0:00:07]} 2. Nc3 {[%emt 0:00:39]} Nf6 {[%emt 0:00:18]} 3. Bf4 {[%emt 0:00:09]} c6 {[%emt 0:01:55]} 4. e3 {[%emt 0:01:02]} Bf5 {[%emt 0:02:00]} 5. f3 {[%emt 0:00:39]} e6 {[%emt 0:07:26]} 6. g4 {[%emt 0:00:28]} Bg6 {[%emt 0:00:19]} 7. h4 {[%emt 0:00:18] Threatens to win with h5.} h5 {[%emt 0:01:10]} 8. g5 {[%emt 0:00:21] White is slightly better.} Ng8 {[%emt 0:07:34]} 9. Bd3 {[%emt 0:00:30]} Bxd3 {[%emt 0:05:08]} 10. Qxd3 {[%emt 0:00:39]} Bd6 {[%emt 0:01:42]} 11. g6 {[%emt 0:03:13] aiming for gxf7+.} f6 {[%emt 0:03:34][%cal Bf7f6,Bf6f5][%mdl 32]} 12. Nge2 {[%emt 0:01:00]} Ne7 {[%emt 0:03:34]} 13. O-O-O {[%emt 0:02:38]} Qc7 {[%emt 0:04:52]} 14. Bxd6 {[%emt 0:01:54]} Qxd6 {[%emt 0:00:08]} 15. e4 {[%emt 0:00:33][%cal Be3e4,Be4e5][%mdl 32]} Nd7 {[%emt 0:00:37]} (15... Na6 $142) 16. f4 $11 {[%emt 0:05:18]} f5 {[%emt 0:11:34]} 17. e5 {[%emt 0:11:29]} Qc7 {[%emt 0:00:25]} 18. Rhg1 {[%emt 0:00:46]} O-O-O {[%emt 0:02:24]} 19. Na4 {[%emt 0:01:36]} Rh6 {[%emt 0:04:20]} 20. Qa3 {[%emt 0:01:23]} Nxg6 {[%emt 0:05:52][%cal Oc7a5]} 21. Rd3 {[%emt 0:01:27] With the idea Nc5.} Qa5 {[%emt 0:03:24]} 22. b4 {[%emt 0:05:25]} Qa6 {[%emt 0:02:31][%cal Od7f8]} 23. Qb3 {[%emt 0:03:33]} Rg8 {[%emt 0:04:34]} ({Better is} 23... Nxh4 $11 24. Rxg7 Rg6) 24. Nc5 {[%emt 0:07:54]} Nxc5 {[%emt 0:00:10]} 25. dxc5 {[%emt 0:00:07]} Ne7 {[%emt 0:08:54]} (25... Nxh4 $11 {keeps the balance.} 26. b5 cxb5 (26... Qxb5 27. Qxb5 cxb5 28. Rdg3 $15)) 26. Nd4 $16 {[%emt 0:01:19]} Qc4 {[%emt 0:01:07]} 27. a4 $2 {[%emt 0:09:04]} (27. Qb2 $1 $16 {is forced if you want to stay better. Rgd1 would now be deadly.} Ng6 28. Rf1 (28. Nxe6 $2 Nxf4 29. Nxf4 Qxf4+ 30. Kb1 Qxh4 $19)) 27... Rg6 $17 {[%emt 0:01:57]} 28. Rgd1 {[%emt 0:09:45]} Qxb3 {[%emt 0:01:18]} 29. Rxb3 {[%emt 0:00:08]} Rg4 {[%emt 0:01:56][%csl LRf4,LRh4]} 30. Nxe6 {[%emt 0:00:43]} Rxh4 {[%emt 0:03:46]} 31. b5 {[%emt 0:01:24]} Kd7 {[%emt 0:01:58]} (31... Rg4 $17) 32. Nd4 $1 $11 {[%emt 0:02:07] bxc6+ is the strong threat.} Rc8 {[%emt 0:02:50]} 33. bxc6+ {[%emt 0:14:11]} bxc6 {[%emt 0:00:09]} 34. Rf1 {[%emt 0:00:40] Black must now prevent a5.} Rg4 {[%emt 0:02:41] [#]} (34... g5 $11 {remains equal.}) 35. a5 $1 $16 {[%emt 0:00:47][%cal Ba4a5,Ba5a6][%mdl 1056] And now a6 would win. White has strong compensation. White is much more active.} (35. Rb7+ $6 Rc7 36. Rb8 Rc8 37. Rb7+ Rc7 $11) 35... Kc7 $2 {[%emt 0:01:58][%mdl 8192] [#] This costs Black the game.} (35... a6 $16 {is a better chance.}) 36. a6 $1 $18 {[%emt 0:01:04]} Rb8 {[%emt 0:00:34]} 37. Rff3 {[%emt 0:00:19]} h4 {[%emt 0:01:53][%cal Bh5h4,Bh4h3][%mdl 32]} 38. Ne6+ {[%emt 0:02:15]} Kc8 {[%emt 0:00:39]} (38... Kd7 $18 39. Rxb8 Kxe6) 39. Rxb8+ {[%emt 0:00:26] White mates.} Kxb8 {[%emt 0:00:01] KRN-KRN} 40. Rb3+ {[%emt 0:00:10]} Kc8 {[%emt 0:00:06]} 41. Rb7 {[%emt 0:30:07]} h3 {[%emt 0:09:41]} 42. Rc7+ {[%emt 0:00:00]} (42. Rxe7 h2 $11) 42... Kb8 {[%emt 0:00:08]} 43. Rxe7 {[%emt 0:00:00][%cal Re7e8]} Kc8 {[%emt 0:00:29]} 44. Rc7+ {[%emt 0:00:00]} (44. Nxg7 h2 45. Re8+ (45. Rxa7 $2 h1=Q+ 46. Kb2 Rg1 $19) 45... Kd7 46. e6+ Kc7 $16) 44... Kb8 {[%emt 0:00:06]} 45. Rd7 {[%emt 0:00:00] Weighted Error Value: White=0.14 (very precise) /Black=0.46.  Loses game:     	---       	Black=1      Mistake:       	White=1     	Black=6      Inaccurate:     	White=2     	---        OK:         	White=17    	Black=13     Best:        	White=2     	Black=1      Strong:       	White=3     	---} (45. Rxc6 h2 46. Rd6 h1=Q+ $16 (46... h1=R+ 47. Kb2 Rh8 48. c6 g6 49. c7+ Kc8 50. Rd8+)) 1-0